bitfinex/quotes_ETHUSD_20260203
["timestamp","ask_amount","ask_price","bid_price","bid_amount"]
[1770148819256,0.00684759,2209.3,2208.1,1.18216271]
[1770148819447,0.00684759,2209.3,2208.3,1.18216271]
[1770148819644,0.00684759,2209.4,2208.3,13.91180424]
[1770148819873,0.00684759,2209.3,2208.4,2.7311257]
[1770148820143,1.13101725,2210.4,2208.5,13.91180424]
[1770148820367,0.00684759,2209.5,2208.6,1.18216271]
[1770148820741,0.00684759,2209.4,2208.6,1.18216271]
[1770148820942,0.00684759,2209.5,2208.6,13.91180424]
[1770148821163,0.00684759,2209.4,2208.6,15.61566353]
[1770148821670,0.00684759,2210.1,2208.8,13.91180424]
[1770148821857,0.00684759,2209.8,2208.9,13.91180424]
[1770148822260,0.00684759,2210.2,2209.1,12.72964153]
[1770148822577,0.0011,2210.3,2209.6,1.18216271]
[1770148823073,0.00684759,2210.1,2209.6,1.18216271]
[1770148823260,0.00684759,2210.1,2209.5,1.18216271]
[1770148823590,0.00684759,2209.6,2209.2,1.18216271]
[1770148823884,0.00684759,2209.5,2209.3,0.95017072]
[1770148824091,0.00684759,2209.4,2208.6,1.18216271]
[1770148824254,0.00684759,2209.3,2208.7,1.18216271]
[1770148824449,0.00684759,2209.7,2208.7,1.18216271]
[1770148824450,0.00794759,2210.3,2208.9,1.18216271]
[1770148824688,0.00794759,2210.3,2209.2,12.72964153]
[1770148824878,0.00684759,2210.1,2209.3,1.18216271]
[1770148825089,0.00684759,2209.9,2209.3,1.18216271]
[1770148825584,0.00684759,2210.1,2209.3,1.18216271]
[1770148825787,0.00794759,2210.3,2209.4,13.91180424]
[1770148825990,0.0011,2210.3,2209.7,1.18216271]
[1770148826308,0.0011,2210.3,2209.6,1.18216271]
[1770148826487,0.0011,2210.3,2209.7,13.91180424]
[1770148826783,0.00684759,2210.2,2209.7,1.18216271]
[1770148826987,0.00684759,2210.2,2209.2,12.72909153]
[1770148826988,0.00684759,2209.7,2209.2,1.18216271]
[1770148827170,0.00684759,2210.1,2209.1,1.57782563]
[1770148827171,0.0011,2210.5,2209.1,1.18216271]
[1770148827349,0.00684759,2210.3,2209.3,13.90783044]
[1770148827549,0.00684759,2210.1,2209.4,1.54856561]
[1770148827753,0.00794759,2210.5,2209.4,2.73072832]
[1770148827947,0.00684759,2210.1,2209.5,1.18216271]
[1770148828352,0.00794759,2210.1,2209.4,13.90783044]
[1770148828860,0.00794759,2210.3,2209.6,1.18216271]
[1770148829071,0.00794759,2210.3,2209.5,1.18216271]
[1770148829072,0.00684759,2210.2,2209.5,1.18216271]
[1770148829381,0.00794759,2210.3,2209.5,1.18216271]
[1770148829979,0.00684759,2209.7,2209.2,1.18216271]
[1770148830184,0.00684759,2209.7,2208.9,1.18216271]
[1770148830385,0.00684759,2209.5,2208.8,1.18216271]
[1770148830591,0.00684759,2209.9,2208.9,12.72511773]
[1770148830895,0.00684759,2209.9,2209.0,13.90728044]
[1770148831051,0.0011,2210.3,2209.3,1.18216271]
[1770148831251,0.00794759,2210.3,2209.3,13.90728044]
[1770148831453,0.00684759,2210.1,2209.4,1.18216271]
[1770148831656,0.00684759,2209.6,2209.0,1.18216271]
[1770148832067,0.00684759,2209.8,2209.0,1.18216271]
[1770148832758,0.00684759,2209.7,2209.0,1.18216271]
[1770148833293,0.00684759,2210.0,2209.2,1.18216271]
[1770148833494,0.00794759,2210.3,2209.4,1.18216271]
[1770148833660,0.00684759,2210.2,2209.4,1.18216271]
[1770148833860,0.00794759,2210.3,2209.5,1.18216271]
[1770148834362,0.00794759,2210.3,2209.6,1.18216271]
[1770148834575,0.0011,2210.3,2209.6,1.18216271]
[1770148834956,0.0011,2210.3,2209.7,1.18216271]
[1770148835156,0.00684759,2210.1,2209.5,1.18216271]
[1770148835394,0.00684759,2210.1,2209.4,1.18216271]
[1770148835806,0.00684759,2210.0,2209.4,1.18216271]
[1770148836099,0.00684759,2209.7,2209.2,1.18216271]
[1770148836395,0.00684759,2209.8,2209.3,0.94965005]
[1770148836594,0.00684759,2209.9,2209.4,0.94965005]
[1770148836771,0.00684759,2209.9,2209.2,1.18216271]
[1770148837182,0.00684759,2209.9,2208.9,3.32201749]
[1770148837183,0.00684759,2209.2,2208.9,1.18216271]
[1770148837382,0.00684759,2210.0,2209.0,0.95045616]
[1770148837689,0.00684759,2210.0,2209.0,1.18216271]
[1770148837993,0.00684759,2209.5,2209.1,0.95045616]
[1770148838190,0.00684759,2209.6,2209.2,0.95045616]
[1770148838398,0.00684759,2209.6,2208.9,1.18216271]
[1770148838562,0.00684759,2210.0,2208.9,15.45579105]
[1770148838760,0.00684759,2210.0,2209.1,12.72511773]
[1770148838982,0.00684759,2210.1,2209.2,0.94977788]
[1770148839298,0.00684759,2210.0,2209.3,0.94977788]
[1770148839493,0.00684759,2210.0,2209.4,0.94977788]
[1770148839698,0.00684759,2209.6,2208.9,1.18216271]
[1770148839994,0.00684759,2209.6,2209.0,2.13138222]
[1770148840162,0.00684759,2209.6,2208.9,1.64341061]
[1770148840163,9.85668914,2210.3,2208.5,2.37301749]
[1770148840363,9.85668914,2210.3,2208.3,0.001]
[1770148840364,0.00684759,2209.8,2208.3,15.37401749]
[1770148840568,0.00684759,2210.2,2208.3,15.37401749]
[1770148840569,0.00794759,2210.3,2208.4,14.13200971]
[1770148840770,0.655,2210.2,2208.6,13.0]
[1770148841268,0.00684759,2210.0,2208.3,0.001]
[1770148841501,0.00684759,2209.9,2208.3,0.001]
[1770148841996,0.00684759,2209.7,2209.2,0.001]
[1770148842162,0.00684759,2209.7,2208.3,0.001]
[1770148842360,0.00684759,2209.6,2209.0,0.001]
[1770148842596,0.00684759,2209.7,2209.0,0.001]
[1770148842805,0.00794759,2209.9,2209.0,0.001]
[1770148842806,1.13237432,2209.9,2209.0,0.001]
[1770148842966,0.00684759,2209.8,2209.0,0.001]
[1770148843167,0.00684759,2209.5,2209.0,0.001]
[1770148844687,1.13922191,2209.9,2209.0,0.001]
[1770148844688,0.00794759,2209.9,2209.0,0.001]
[1770148844869,0.0011,2209.9,2209.0,0.001]
[1770148846093,0.00794759,2209.9,2209.0,0.001]
[1770148846593,0.00684759,2209.8,2209.0,0.001]
[1770148846798,0.00684759,2209.7,2209.0,0.001]
[1770148847365,0.6581,2209.9,2209.0,0.001]
[1770148847567,0.0011,2209.9,2209.0,0.001]
[1770148848395,0.0011,2209.9,2209.0,13.001]
[1770148848696,0.0011,2209.9,2209.1,14.3001]
[1770148850887,0.0011,2209.9,2209.1,14.13167968]
[1770148851200,0.0011,2210.3,2209.1,14.13166798]
[1770148851396,0.0011,2210.5,2209.5,12.9989]
[1770148851712,0.0011,2211.4,2209.9,12.9978]
[1770148852001,0.00684759,2211.3,2209.7,15.37081749]
[1770148852206,0.00684759,2211.2,2209.8,1.53708175]
[1770148852403,0.00684759,2211.0,2209.7,12.9978]
[1770148852615,0.00684759,2210.8,2209.2,15.37081749]
[1770148852822,0.00684759,2210.8,2209.2,12.9978]
[1770148852986,0.00684759,2210.8,2209.2,14.12942908]
[1770148853318,0.00684759,2210.9,2209.3,12.9978]
[1770148853520,0.655,2211.0,2209.5,12.9978]
[1770148854382,0.00684759,2210.7,2209.5,12.9978]
[1770148854632,0.00684759,2210.5,2209.5,12.9978]
[1770148854831,0.00684759,2210.9,2209.5,12.9978]
[1770148854832,0.00684759,2211.2,2209.5,14.12927163]
[1770148855124,0.0011,2211.4,2209.7,12.9978]
[1770148855409,0.00794759,2211.4,2209.9,12.9978]
[1770148856918,0.0011,2210.6,2209.9,12.9978]
[1770148858218,0.0011,2210.6,2209.7,0.949]
[1770148858419,0.00684759,2210.4,2209.4,0.001]
[1770148858587,0.00684759,2210.3,2209.4,0.001]
[1770148859888,0.00684759,2210.2,2209.4,0.001]
[1770148860292,0.00684759,2210.2,2209.1,12.9988]
[1770148860293,0.00684759,2209.7,2209.1,0.001]
[1770148860624,0.00684759,2209.7,2208.3,12.9998]
[1770148860625,0.65984759,2209.7,2208.3,12.9998]
[1770148860829,0.652,2210.0,2208.5,12.9993]
[1770148860991,0.00684759,2210.1,2208.5,14.13127769]
[1770148861341,0.00684759,2210.4,2208.6,12.9993]
[1770148861815,0.00684759,2210.3,2208.6,12.9993]
[1770148862018,0.00684759,2210.3,2208.8,12.9993]
[1770148862519,0.0011,2210.6,2208.8,12.9993]
[1770148862688,0.0011,2210.6,2209.0,12.9993]
[1770148862891,0.0011,2210.8,2209.7,12.9993]
[1770148863131,0.0011,2211.4,2210.1,12.99875]
[1770148863287,0.0011,2211.4,2210.3,12.99875]
[1770148863488,0.0011,2211.4,2210.5,12.99875]
[1770148863743,0.0011,2211.7,2210.5,12.9982]
[1770148864027,0.0011,2211.7,2210.5,13.9472]
[1770148865318,0.0011,2211.7,2210.5,15.0781528]
[1770148865519,0.0011,2211.7,2210.7,12.9982]
[1770148866486,0.00684759,2212.5,2210.9,12.99765]
[1770148866733,0.0011,2212.7,2211.0,12.99765]
[1770148867037,0.0011,2212.7,2211.4,12.99765]
[1770148867211,0.0011,2212.7,2211.5,12.99765]
[1770148867419,0.0011,2212.7,2211.2,1.13057041]
[1770148867420,0.0011,2212.7,2211.7,12.99765]
[1770148867831,0.00794759,2212.7,2211.3,12.99765]
[1770148867999,0.00684759,2212.6,2211.3,12.99765]
[1770148868522,0.00794759,2212.7,2211.3,12.99765]
[1770148868710,0.00684759,2212.2,2211.3,12.99765]
[1770148869028,0.00684759,2212.2,2211.1,0.949]
[1770148869332,0.00684759,2212.2,2210.3,4.62663141]
[1770148869333,0.00684759,2211.5,2210.5,12.99765]
[1770148869635,0.00684759,2211.4,2210.1,12.99765]
[1770148869847,0.00684759,2211.7,2210.1,14.392315]
[1770148870006,0.0011,2212.5,2210.6,12.99765]
[1770148870200,0.00684759,2212.4,2210.9,12.99765]
[1770148870415,0.00684759,2211.7,2210.7,0.949]
[1770148870617,0.00684759,2211.7,2210.8,0.001]
[1770148870930,0.00684759,2211.8,2210.8,0.001]
[1770148871507,1.13692065,2212.3,2210.8,0.001]
[1770148871508,0.00684759,2212.4,2210.8,12.99915]
[1770148871734,0.0011,2212.5,2211.0,12.99815]
[1770148872236,0.00684759,2212.2,2211.0,12.99815]
[1770148872444,0.00684759,2211.6,2210.8,0.001]
[1770148872607,0.00684759,2211.6,2210.0,12.99865]
[1770148872608,0.00684759,2211.3,2210.0,12.99865]
[1770148872799,0.00684759,2211.3,2210.0,12.28903307]
[1770148873307,0.00684759,2210.8,2210.0,12.28903307]
[1770148873497,0.00684759,2210.6,2209.5,12.64384153]
[1770148873894,0.00684759,2210.5,2209.5,12.64384153]
[1770148874133,0.00684759,2210.5,2209.1,0.949]
[1770148874134,0.00684759,2210.2,2209.1,13.59284153]
[1770148874337,0.00684759,2210.0,2209.1,12.64384153]
[1770148874629,0.00684759,2210.4,2209.1,13.90822568]
[1770148874830,0.00684759,2210.3,2209.1,12.64384153]
[1770148875033,0.00684759,2209.9,2209.1,12.64384153]
[1770148875911,0.00684759,2210.1,2209.1,12.64384153]
[1770148876107,0.00684759,2210.0,2208.6,12.64384153]
[1770148876347,0.00684759,2209.8,2208.6,12.64384153]
[1770148876528,0.00684759,2209.9,2208.8,12.64384153]
[1770148876919,0.00684759,2209.6,2208.4,12.64384153]
[1770148877118,0.00684759,2209.5,2208.4,12.64384153]
[1770148877411,0.00684759,2209.3,2208.4,12.64384153]
[1770148878126,0.00684759,2209.3,2208.3,0.001]
[1770148878127,0.00684759,2208.9,2208.3,0.001]
[1770148878327,0.00684759,2208.9,2208.0,0.001]
[1770148878328,0.00684759,2208.7,2208.0,0.001]
[1770148878532,0.00684759,2208.1,2207.3,0.001]
[1770148878718,0.00684759,2207.8,2207.0,12.64584153]
[1770148878921,0.00684759,2208.1,2207.0,12.64584153]
[1770148879119,0.00684759,2208.2,2207.2,12.64684153]
[1770148879522,0.00684759,2208.2,2207.0,0.001]
[1770148879523,0.00684759,2207.9,2207.0,0.001]
[1770148879722,0.00684759,2207.9,2206.7,12.64584153]
[1770148879723,0.00684759,2207.5,2206.7,12.64584153]
[1770148879922,0.00684759,2207.3,2206.4,0.001]
[1770148880532,0.65284759,2207.3,2206.4,0.001]
[1770148880731,0.646,2207.3,2206.4,0.001]
[1770148880932,0.00684759,2207.4,2206.4,0.001]
[1770148881442,0.00684759,2207.3,2206.4,0.001]
[1770148882212,0.00684759,2207.0,2206.4,0.001]
[1770148882461,0.00684759,2207.0,2205.9,0.001]
[1770148882462,0.00684759,2206.8,2205.9,0.001]
[1770148882617,0.00684759,2206.6,2205.9,0.001]
[1770148883164,0.00684759,2206.5,2205.9,0.001]
[1770148883441,0.00684759,2206.7,2205.9,0.001]
[1770148883615,0.645,2207.5,2205.9,12.64834153]
[1770148883814,1.13940941,2207.4,2206.0,13.91217568]
[1770148884015,1.13940941,2207.4,2205.9,0.001]
[1770148884016,0.00684759,2206.4,2205.9,0.001]
[1770148884214,0.00684759,2206.4,2205.6,0.001]
[1770148884215,0.00684759,2206.3,2205.6,0.001]
[1770148885316,0.00684759,2206.2,2205.6,0.001]
[1770148885927,0.00684759,2206.1,2205.6,0.001]
[1770148886123,0.00684759,2205.9,2205.1,12.64784153]
[1770148886324,0.00684759,2205.8,2205.1,13.91272568]
[1770148886523,0.00684759,2206.2,2205.1,13.91272568]
[1770148886716,0.00684759,2206.1,2205.1,13.91272568]
[1770148887134,0.00684759,2205.8,2205.1,12.64784153]
[1770148887339,0.00684759,2205.0,2204.1,12.64884153]
[1770148887522,0.00684759,2205.4,2204.1,12.64884153]
[1770148887728,0.00684759,2205.9,2204.1,13.7830585]
[1770148888045,0.00684759,2205.8,2204.1,13.7830585]
[1770148888346,0.00684759,2205.8,2204.3,12.64934153]
[1770148888552,0.00684759,2205.8,2204.3,13.59934153]
[1770148888926,0.00684759,2205.7,2204.3,13.59934153]
[1770148889448,0.00684759,2205.6,2204.3,13.59934153]
[1770148890647,0.00684759,2206.0,2204.3,14.73348016]
[1770148890846,0.00684759,2206.0,2204.5,12.64934153]
[1770148891050,0.00684759,2205.7,2204.5,12.64934153]
[1770148891375,0.00684759,2205.4,2204.5,12.64934153]
[1770148891729,0.00684759,2205.7,2204.5,12.64934153]
[1770148892164,0.00684759,2206.1,2204.5,12.64934153]
[1770148892364,0.00684759,2206.1,2204.3,0.95]
[1770148892365,0.00684759,2205.8,2204.6,13.91427568]
[1770148892860,0.00684759,2206.5,2204.6,13.91427568]
[1770148893057,0.64984759,2206.6,2204.6,13.91427568]
[1770148893261,0.00684759,2206.3,2204.8,12.64934153]
[1770148893460,0.00684759,2206.1,2204.8,12.64934153]
[1770148893759,0.00684759,2206.1,2205.0,12.64934153]
[1770148894266,0.00684759,2205.9,2205.0,12.64934153]
[1770148894563,0.65308045,2206.3,2205.0,12.64934153]
[1770148894770,0.65308045,2206.3,2205.0,13.60034153]
[1770148895282,0.65308045,2206.3,2205.1,13.78307696]
[1770148895439,0.65308045,2206.3,2205.3,12.64934153]
[1770148896478,0.00684759,2207.0,2206.0,12.32280131]
[1770148897066,0.00684759,2207.4,2205.2,3.08209187]
[1770148897067,0.00684759,2207.4,2206.2,12.32280131]
[1770148897427,0.00684759,2207.3,2206.2,12.32280131]
[1770148897683,0.00684759,2207.4,2206.2,12.32280131]
[1770148897844,0.0011,2207.5,2206.4,12.32280131]
[1770148898355,0.00684759,2207.4,2206.4,12.32280131]
[1770148898758,0.0011,2207.5,2206.4,12.32280131]
[1770148899845,0.0011,2207.5,2206.0,0.951]
[1770148899846,0.00684759,2207.0,2206.0,12.32280131]
[1770148900145,0.00684759,2206.9,2206.0,12.32280131]
[1770148900367,0.00684759,2206.9,2206.0,13.55508144]
[1770148901283,0.00684759,2206.9,2206.0,12.32280131]
[1770148901576,0.00684759,2207.0,2206.0,12.32280131]
[1770148901750,0.00684759,2207.1,2206.0,12.32280131]
[1770148901947,0.00684759,2207.2,2206.0,12.32280131]
[1770148903200,0.00794759,2207.5,2206.0,12.32280131]
[1770148903350,0.00794759,2207.5,2206.2,12.32280131]
[1770148903677,0.0011,2207.5,2206.2,12.32280131]
[1770148903882,0.0011,2207.5,2206.2,13.45596914]
[1770148904379,0.0011,2207.5,2206.2,13.4559696]
[1770148904586,0.0011,2207.5,2206.2,12.32280131]
[1770148904756,0.0011,2207.5,2206.4,12.32280131]
[1770148905097,0.0011,2207.5,2205.9,5.48427613]
[1770148905098,0.00684759,2206.9,2205.9,12.32280131]
[1770148906380,0.00684759,2207.0,2205.9,12.32280131]
[1770148906571,0.00684759,2206.9,2205.9,12.32280131]
[1770148907093,0.00684759,2206.9,2205.9,13.55508144]
[1770148907870,0.00684759,2207.0,2205.9,13.55508144]
[1770148909095,0.00684759,2207.1,2206.1,0.001]
[1770148909297,0.00684759,2207.0,2206.1,12.32380131]
[1770148909600,0.00684759,2206.9,2206.1,0.001]
[1770148910171,0.0011,2207.1,2206.1,12.32380131]
[1770148910401,0.0011,2207.1,2206.1,13.55628144]
[1770148911404,0.00684759,2207.0,2206.1,12.32380131]
[1770148911580,0.00684759,2206.9,2206.1,12.32380131]
[1770148911970,0.00794759,2207.1,2206.1,12.32380131]
[1770148912701,0.00684759,2207.0,2206.1,12.32380131]
[1770148913406,0.00684759,2207.0,2205.9,0.001]
[1770148913407,0.00684759,2206.7,2205.9,0.001]
[1770148913580,0.00684759,2206.4,2205.9,0.001]
[1770148913776,0.00684759,2206.4,2205.3,12.40823323]
[1770148913976,0.00684759,2206.4,2205.3,14.91970676]
[1770148914178,0.00684759,2206.9,2205.4,12.99540495]
[1770148914373,0.64284759,2206.9,2205.6,12.99540495]
[1770148914588,0.636,2206.9,2205.6,12.99540495]
[1770148915508,0.00684759,2207.2,2205.5,3.24811502]
[1770148915509,0.0011,2207.1,2205.8,12.99540495]
[1770148915707,0.00684759,2207.0,2205.9,14.41130566]
[1770148916205,0.00684759,2207.0,2205.9,12.99540495]
[1770148916383,0.00684759,2206.8,2205.9,12.99540495]
[1770148916800,0.00794759,2207.1,2205.9,12.99540495]
[1770148917384,0.00684759,2206.9,2205.9,12.99540495]
[1770148918205,0.00684759,2206.7,2205.9,12.99540495]
[1770148918405,0.00684759,2206.8,2205.9,12.99540495]
[1770148919191,0.00684759,2206.7,2205.9,12.99540495]
[1770148920098,0.00684759,2206.3,2205.3,2.51147353]
[1770148920315,0.00684759,2206.1,2205.2,0.001]
[1770148920527,0.00684759,2205.8,2205.2,0.001]
[1770148921005,0.00684759,2206.1,2205.2,12.99640495]
[1770148921204,0.64284759,2206.4,2205.2,12.99640495]
[1770148921537,1.13967971,2206.9,2205.2,12.99640495]
[1770148921538,0.0011,2207.1,2205.7,12.99540495]
[1770148921823,0.0011,2207.1,2205.9,12.99540495]
[1770148921985,0.0011,2207.1,2206.1,12.99540495]
[1770148922186,0.0011,2207.3,2206.4,14.15900706]
[1770148922381,0.0011,2207.3,2206.5,1.16360211]
[1770148922626,0.00794759,2207.3,2206.2,12.99540495]
[1770148923031,0.0011,2207.3,2206.2,15.73138981]
[1770148923318,0.0011,2207.3,2206.3,14.15900706]
[1770148923485,1.62897838,2208.2,2206.9,12.99540495]
[1770148923486,0.00794759,2208.2,2206.9,12.99540495]
[1770148923686,0.0011,2208.2,2207.1,14.15900706]
[1770148923937,0.0011,2208.2,2207.5,12.99540495]
[1770148924121,0.0011,2208.2,2207.6,14.29494545]
[1770148924327,0.0011,2208.2,2207.4,1.16360211]
[1770148924328,0.00684759,2208.9,2207.5,13.94640495]
[1770148924494,1.2259805,2209.3,2207.9,12.99540495]
[1770148924495,0.00684759,2209.3,2207.9,12.99540495]
[1770148924685,0.64184759,2209.4,2207.9,12.99540495]
[1770148924887,0.00684759,2209.8,2207.9,12.99540495]
[1770148924888,1.2259805,2210.3,2208.4,14.15900706]
[1770148925093,1.62787838,2210.5,2208.8,14.15900706]
[1770148925094,0.00684759,2210.4,2208.8,14.15900706]
[1770148925394,0.00684759,2210.4,2209.0,12.99540495]
[1770148925630,0.00684759,2210.0,2209.0,12.99540495]
[1770148925891,0.00684759,2210.3,2209.0,12.99540495]
[1770148926335,0.00684759,2210.0,2209.0,12.99540495]
[1770148926491,0.00684759,2209.5,2208.5,12.99540495]
[1770148926694,0.00684759,2209.4,2208.5,12.99540495]
[1770148926890,0.00684759,2209.3,2208.5,12.99540495]
[1770148927520,0.00684759,2209.3,2208.0,13.94540495]
[1770148927521,0.00684759,2209.0,2208.0,13.94540495]
[1770148927767,0.00684759,2209.0,2208.0,12.99540495]
[1770148927912,0.00684759,2209.0,2207.6,12.99540495]
[1770148927913,0.00684759,2208.6,2207.6,12.99540495]
[1770148928114,0.00684759,2208.9,2207.6,15.44913544]
[1770148928315,0.00684759,2209.0,2207.6,15.44913544]
[1770148928514,0.00684759,2208.8,2207.6,15.44913544]
[1770148928714,0.00684759,2208.9,2207.6,15.44913544]
[1770148929113,0.00684759,2209.0,2207.6,15.44913544]
[1770148929325,0.00684759,2208.8,2207.8,12.99540495]
[1770148929650,0.00684759,2208.3,2207.3,12.99540495]
[1770148930628,0.63884759,2208.7,2207.3,12.99540495]
[1770148931126,0.00684759,2207.8,2206.8,12.99540495]
[1770148931534,0.00684759,2207.4,2206.3,12.99540495]
[1770148931729,0.00684759,2207.2,2206.3,12.99540495]
[1770148932048,0.63884759,2207.6,2206.3,14.38994544]
[1770148932751,0.00684759,2207.3,2206.3,12.99540495]
[1770148933251,0.00684759,2206.9,2205.8,12.99540495]
[1770148933414,0.00684759,2206.8,2205.8,12.99540495]
[1770148934108,0.00684759,2206.8,2205.4,0.001]
[1770148934314,0.00684759,2206.3,2205.4,0.001]
[1770148934546,0.00192374,2206.3,2205.4,0.001]
[1770148934929,0.00684759,2206.2,2205.4,0.001]
[1770148935355,0.00684759,2206.0,2205.4,0.001]
[1770148935755,0.00684759,2206.0,2205.0,0.001]
[1770148935756,0.00684759,2205.6,2205.0,0.001]
[1770148935956,0.63684759,2205.6,2204.3,12.99640495]
[1770148936257,0.63,2205.6,2204.5,12.99540495]
[1770148936632,0.00684759,2206.3,2204.5,12.99540495]
[1770148936858,0.63684759,2206.2,2205.3,0.001]
[1770148937061,0.00684759,2206.7,2205.3,12.99640495]
[1770148937270,0.00684759,2206.6,2205.3,12.99640495]
[1770148937580,0.00684759,2206.6,2205.3,14.29604545]
[1770148937784,0.00684759,2207.4,2205.3,14.29604545]
[1770148937941,0.00684759,2207.4,2205.5,12.99540495]
[1770148938280,0.50983972,2208.2,2206.1,12.99540495]
[1770148938439,0.50983972,2208.2,2205.6,1.1835703]
[1770148938440,0.63684759,2208.3,2206.3,12.99540495]
[1770148938768,0.00684759,2208.4,2206.6,0.3359703]
[1770148938999,0.00794759,2208.8,2206.6,0.3359703]
[1770148939000,0.0011,2208.8,2206.9,12.99540495]
[1770148939278,0.0011,2208.8,2206.7,0.1024]
[1770148939279,0.00794759,2208.8,2207.1,12.99540495]
[1770148939432,0.0011,2208.8,2207.1,12.99540495]
[1770148940035,0.00794759,2208.8,2207.1,12.99540495]
[1770148940270,0.00794759,2208.8,2207.3,12.99540495]
[1770148940868,0.00684759,2208.6,2207.3,12.99540495]
[1770148941464,0.00684759,2208.4,2207.3,12.99540495]
[1770148941876,0.00684759,2208.5,2207.3,12.99540495]
[1770148942032,0.00794759,2208.8,2207.3,12.99540495]
[1770148942233,0.00684759,2208.6,2207.4,12.89343608]
[1770148942466,0.00684759,2208.5,2207.4,12.89343608]
[1770148942668,0.00684759,2208.4,2207.4,12.89343608]
[1770148943282,0.0011,2208.8,2207.4,12.89343608]
[1770148943771,0.00684759,2208.7,2207.4,12.89343608]
[1770148943944,0.00684759,2208.7,2207.0,0.95]
[1770148943945,0.00684759,2208.3,2207.0,0.95]
[1770148944147,0.00684759,2208.3,2207.0,13.84343608]
[1770148944569,0.00684759,2208.1,2207.0,13.84343608]
[1770148944736,0.00684759,2208.5,2207.0,13.84343608]
[1770148944941,0.10924759,2208.7,2207.0,13.84343608]
[1770148945137,0.00684759,2208.7,2207.2,12.89343608]
[1770148945973,0.00684759,2208.5,2207.2,12.89343608]
[1770148946182,0.00684759,2208.4,2207.2,12.89343608]
[1770148946483,0.00684759,2208.7,2207.2,12.89343608]
[1770148947259,0.00684759,2208.5,2207.2,12.89343608]
[1770148947475,0.00684759,2208.4,2207.2,12.89343608]
[1770148947877,0.00684759,2208.1,2207.2,12.89343608]
[1770148948475,0.00684759,2208.3,2207.2,12.89343608]
[1770148948894,0.00684759,2208.3,2207.2,14.18277969]
[1770148949200,0.00684759,2208.4,2207.2,14.18277969]
[1770148949403,0.00794759,2208.5,2207.2,14.18277969]
[1770148949566,0.0011,2208.5,2207.2,14.18277969]
[1770148950694,0.0011,2208.7,2207.6,12.89343608]
[1770148950893,0.0011,2208.7,2207.8,12.89343608]
[1770148952287,0.0011,2209.0,2207.9,12.89343608]
[1770148952695,0.0011,2209.6,2208.0,12.89343608]
[1770148953313,0.0011,2209.6,2208.2,12.89343608]
[1770148953518,0.0011,2209.6,2208.4,12.89343608]
[1770148953704,0.0011,2209.6,2208.3,0.95]
[1770148953705,0.0011,2209.6,2208.6,12.89343608]
[1770148955090,0.0011,2209.9,2208.6,12.89343608]
[1770148956420,0.00684759,2209.7,2208.6,12.89343608]
[1770148956635,0.00684759,2209.5,2208.6,12.89343608]
[1770148956787,0.00684759,2209.4,2208.4,0.95]
[1770148956988,0.00684759,2209.3,2208.2,12.89343608]
[1770148957321,0.00684759,2209.3,2207.7,1.28934361]
[1770148957322,0.00684759,2208.8,2207.7,12.89343608]
[1770148957630,1.13873512,2208.7,2207.7,12.89343608]
[1770148957919,0.00684759,2208.3,2207.2,12.89343608]
[1770148958226,0.00684759,2208.2,2207.2,12.89343608]
[1770148958411,0.00684759,2208.5,2207.2,12.89343608]
[1770148958794,0.00684759,2208.8,2207.2,13.84343608]
[1770148959124,0.00684759,2208.8,2207.4,12.89343608]
[1770148959497,1.13868676,2208.8,2207.4,12.89343608]
[1770148959699,0.00684759,2208.8,2207.4,12.89343608]
[1770148959895,0.00684759,2208.0,2206.9,12.89343608]
[1770148960133,0.00684759,2208.4,2206.9,12.89343608]
[1770148960134,0.10924759,2209.0,2206.9,12.89343608]
[1770148960290,0.10924759,2209.0,2207.1,12.89343608]
[1770148960291,0.62984759,2208.7,2207.1,12.89343608]
[1770148960899,0.00684759,2208.6,2207.1,12.89343608]
[1770148961222,0.00684759,2208.3,2207.1,12.89343608]
[1770148961424,0.00684759,2208.3,2206.6,13.84343608]
[1770148961425,0.00684759,2208.0,2206.6,13.84343608]
[1770148961655,1.13943733,2207.4,2206.6,12.89343608]
[1770148961806,0.5676328,2207.3,2206.6,12.89343608]
[1770148962006,0.00684759,2207.2,2206.2,11.5419]
[1770148962308,0.00684759,2206.9,2206.1,12.89343608]
[1770148962513,0.00684759,2206.9,2205.3,0.001]
[1770148962514,0.00684759,2206.5,2205.6,12.89343608]
[1770148963252,0.00684759,2206.5,2205.3,0.001]
[1770148963253,0.00684759,2206.2,2205.3,0.001]
[1770148963404,0.00684759,2206.2,2204.4,10.18870262]
[1770148963405,1.35319738,2206.1,2204.4,10.18870262]
[1770148963606,1.35319738,2206.1,2203.1,13.0]
[1770148963607,1.56272773,2204.3,2203.1,13.0]
[1770148963839,0.622,2205.4,2203.2,12.89343608]
[1770148964013,0.62884759,2205.4,2203.2,12.89343608]
[1770148964351,0.00684759,2205.3,2203.6,12.89343608]
[1770148964549,0.00684759,2205.5,2203.8,12.89343608]
[1770148964719,0.582,2205.7,2203.8,12.89343608]
[1770148965038,1.14700114,2206.0,2203.7,3.39353361]
[1770148965039,0.62884759,2206.0,2204.0,12.89343608]
[1770148965227,0.00684759,2205.9,2204.0,12.89343608]
[1770148965430,0.10924759,2205.9,2204.0,12.89343608]
[1770148965634,0.00684759,2205.4,2203.9,11.5419]
[1770148965804,0.1024,2205.2,2203.9,11.5419]
[1770148966009,0.622,2205.1,2203.9,11.5419]
[1770148966238,0.622,2205.1,2203.4,12.89343608]
[1770148966239,0.62884759,2205.1,2203.4,12.89343608]
[1770148967919,0.00684759,2205.1,2203.6,12.89343608]
[1770148968110,0.622,2205.6,2203.8,12.89343608]
[1770148968645,0.00684759,2205.5,2203.8,12.89343608]
[1770148969151,0.01369518,2205.5,2203.8,12.89343608]
[1770148969649,0.00684759,2205.5,2203.8,12.89343608]
[1770148969941,0.62784759,2205.5,2203.8,12.89343608]
[1770148970114,1.76139326,2205.5,2203.9,1.42777797]
[1770148970520,1.76139326,2205.5,2203.3,24.22179752]
[1770148970521,0.00684759,2205.3,2203.3,24.22179752]
[1770148970722,0.00684759,2205.1,2203.3,24.22179752]
[1770148971310,0.01369518,2205.0,2203.3,12.67989752]
[1770148971710,0.00684759,2205.0,2203.3,12.67989752]
[1770148972139,0.00684759,2205.0,2203.5,12.67989752]
[1770148972337,0.00684759,2205.0,2203.6,13.9712443]
[1770148972858,0.1024,2205.3,2203.6,13.9712443]
[1770148972859,0.00684759,2204.9,2203.6,13.9712443]
[1770148973025,0.00684759,2205.1,2203.6,13.9712443]
[1770148974326,0.00684759,2205.1,2203.8,12.02741486]
[1770148975111,1.14743263,2205.1,2203.8,0.001]
[1770148975350,0.63102219,2205.0,2203.8,0.001]